bitfinex/quotes_BTCUSD_20250403
["timestamp","ask_amount","ask_price","bid_price","bid_amount"]
[1743684022614,0.00047517,82411.0,82410.0,0.5164176]
[1743684022784,0.02047517,82411.0,82410.0,0.5164176]
[1743684022984,0.00047517,82411.0,82410.0,0.5164176]
[1743684023193,0.03047517,82411.0,82410.0,0.5164176]
[1743684023393,0.03047517,82411.0,82410.0,0.8564176]
[1743684024369,0.03047517,82411.0,82410.0,0.86529896]
[1743684024780,0.00047517,82411.0,82410.0,0.86505896]
[1743684025010,0.02047517,82411.0,82410.0,0.86505896]
[1743684029700,0.02047517,82411.0,82410.0,0.2730896]
[1743684029919,0.02047517,82411.0,82410.0,0.3715776]
[1743684030092,0.02047517,82411.0,82410.0,0.5157776]
[1743684030857,0.02047517,82411.0,82410.0,0.52480518]
[1743684031853,0.02047517,82411.0,82410.0,0.86480518]
[1743684032061,0.0003372,82418.0,82417.0,0.594801]
[1743684032062,2e-07,82418.0,82417.0,0.594801]
[1743684032270,0.0043368,82439.0,82438.0,0.254736]
[1743684032468,0.0043368,82439.0,82438.0,0.5157716]
[1743684032622,0.00441542,82439.0,82438.0,0.5157716]
[1743684034045,0.00270373,82439.0,82438.0,0.5157716]
[1743684035577,0.10270373,82439.0,82438.0,0.5157716]
[1743684035774,0.00270373,82439.0,82438.0,0.5157716]
[1743684037110,0.00270373,82439.0,82438.0,0.8538116]
[1743684039672,0.16270373,82439.0,82438.0,0.1167556]
[1743684039898,0.16270373,82439.0,82438.0,0.5034416]
[1743684040074,0.40530673,82439.0,82438.0,0.2608356]
[1743684040370,0.43030673,82439.0,82438.0,0.2608356]
[1743684040907,0.43030673,82439.0,82438.0,0.14408]
[1743684042025,0.49173673,82439.0,82438.0,0.14408]
[1743684042237,0.242662,82419.0,82418.0,0.0003372]
[1743684042414,0.502662,82419.0,82418.0,0.0003372]
[1743684042555,0.26,82419.0,82418.0,0.0003372]
[1743684042749,0.502662,82419.0,82418.0,0.0003372]
[1743684043464,0.926195,82419.0,82418.0,0.0003372]
[1743684043676,0.254817,82412.0,82383.0,0.012138]
[1743684043885,0.519817,82412.0,82394.0,0.242735]
[1743684044278,0.519817,82412.0,82386.0,0.254895]
[1743684044558,0.519817,82412.0,82336.0,0.1277]
[1743684044559,0.951317,82412.0,82388.0,0.1694]
[1743684045006,0.27985,82401.0,82388.0,0.025]
[1743684045210,0.58795,82401.0,82400.0,0.10829309]
[1743684045775,0.97645,82401.0,82400.0,0.10829309]
[1743684045973,0.328487,82389.0,82388.0,0.025]
[1743684046327,0.636987,82389.0,82388.0,0.025]
[1743684046940,0.279949,82369.0,82368.0,0.00120069]
[1743684047121,0.643949,82369.0,82368.0,0.00120069]
[1743684047339,0.389,82369.0,82368.0,0.00120069]
[1743684047743,0.364,82369.0,82368.0,0.00120069]
[1743684048159,0.364,82369.0,82368.0,0.00166349]
[1743684048742,0.3163,82369.0,82368.0,0.00166349]
[1743684048954,0.27,82369.0,82368.0,0.37337109]
[1743684050130,0.0488,82383.0,82368.0,0.36123109]
[1743684050344,0.26,82383.0,82382.0,0.254909]
[1743684050545,0.26,82383.0,82382.0,0.3716646]
[1743684050796,0.26,82383.0,82382.0,0.1167556]
[1743684051402,0.502768,82383.0,82382.0,0.1167556]
[1743684051582,0.514906,82383.0,82381.0,0.1442]
[1743684051890,0.502768,82383.0,82381.0,0.1442]
[1743684052923,0.26,82383.0,82381.0,0.1442]
[1743684053334,0.502769,82383.0,82381.0,0.1442]
[1743684054646,0.037138,82382.0,82381.0,0.1442]
[1743684054816,0.307138,82382.0,82381.0,0.1442]
[1743684055176,0.282138,82382.0,82381.0,0.1442]
[1743684055537,0.025,82370.0,82369.0,0.14384]
[1743684055788,0.28,82370.0,82369.0,0.2605956]
[1743684055964,0.28,82370.0,82369.0,0.1167556]
[1743684056108,0.28,82370.0,82369.0,0.2605956]
[1743684056309,0.28,82370.0,82369.0,0.2727356]
[1743684057204,0.28,82370.0,82369.0,0.2605956]
[1743684057909,0.28,82370.0,82369.0,0.1167556]
[1743684058145,0.28,82370.0,82369.0,0.14372]
[1743684059282,0.03697048,82371.0,82369.0,0.14372]
[1743684059488,0.19697048,82371.0,82369.0,0.14372]
[1743684059686,0.16,82371.0,82369.0,0.398669]
[1743684059884,0.16,82371.0,82370.0,0.3595616]
[1743684060090,0.16,82371.0,82370.0,0.1167556]
[1743684060348,0.16,82371.0,82370.0,0.3717016]
[1743684064019,0.025,82379.0,82378.0,0.242783]
[1743684064167,0.235,82379.0,82378.0,0.1167556]
[1743684064378,0.235,82379.0,82369.0,0.01214]
[1743684064582,0.477783,82379.0,82371.0,0.01214]
[1743684064805,0.242783,82378.0,82372.0,0.3716956]
[1743684065149,0.242804,82371.0,82369.0,0.14352]
[1743684065446,0.242804,82371.0,82370.0,0.1169239]
[1743684065447,0.492804,82371.0,82370.0,0.1169239]
[1743684065566,0.2503366,82371.0,82370.0,0.1169239]
[1743684065968,0.5052796,82371.0,82370.0,0.0001683]
[1743684066199,0.6270796,82371.0,82370.0,0.0001683]
[1743684067880,0.3842766,82371.0,82370.0,0.0001683]
[1743684069211,0.3721366,82371.0,82370.0,0.0123083]
[1743684069438,0.0003366,82371.0,82370.0,0.2727039]
[1743684072125,0.0003366,82371.0,82370.0,0.5155099]
[1743684072333,0.0003366,82371.0,82370.0,0.3718699]
[1743684072551,0.0003366,82371.0,82370.0,0.5154299]
[1743684074015,0.025,82383.0,82381.0,0.254911]
[1743684074187,0.012138,82382.0,82381.0,0.1167556]
[1743684074403,0.254943,82371.0,82370.0,0.1435683]
[1743684074602,0.509943,82371.0,82370.0,0.0001683]
[1743684075995,0.557043,82371.0,82370.0,0.0001683]
[1743684076876,0.29448985,82369.0,82362.0,0.0001683]
[1743684077075,1.73776545,82369.0,82362.0,0.0001683]
[1743684077503,1.606469,82369.0,82362.0,0.0001683]
[1743684080325,1.606469,82369.0,82368.0,7.9e-07]
[1743684080530,0.665268,82363.0,82362.0,3e-07]
[1743684080801,0.665268,82363.0,82350.0,8e-05]
[1743684080802,0.35454085,82352.0,82350.0,9e-07]
[1743684081007,0.63454885,82350.0,82349.0,9.9e-07]
[1743684081156,0.939808,82350.0,82349.0,9.9e-07]
[1743684081360,0.939808,82350.0,82349.0,0.00014031]
[1743684081561,0.914808,82350.0,82349.0,0.00014031]
[1743684081760,0.939808,82350.0,82349.0,0.00014031]
[1743684082163,0.012145,82335.0,82334.0,0.0001683]
[1743684082371,0.012145,82335.0,82334.0,0.00246272]
[1743684082372,0.055,82335.0,82334.0,0.00246272]
[1743684082592,0.055,82335.0,82334.0,0.2430813]
[1743684082800,0.055,82335.0,82334.0,0.00246272]
[1743684082953,0.03,82335.0,82334.0,0.13136332]
[1743684083377,0.03,82335.0,82334.0,0.26277832]
[1743684083831,0.03,82335.0,82334.0,0.26269832]
[1743684084990,0.03,82335.0,82334.0,0.50561132]
[1743684085281,0.03,82335.0,82334.0,0.51775632]
[1743684086861,0.025,82339.0,82335.0,0.012145]
[1743684087036,0.025,82339.0,82338.0,0.255046]
[1743684087235,0.025,82339.0,82338.0,0.3718016]
[1743684087510,0.025,82340.0,82339.0,0.242898]
[1743684087706,0.035,82340.0,82339.0,0.1167556]
[1743684087890,0.035,82340.0,82339.0,0.3596536]
[1743684088196,0.035,82340.0,82339.0,0.36194802]
[1743684088347,0.035,82340.0,82339.0,0.11905002]
[1743684089402,0.035,82340.0,82339.0,0.36194802]
[1743684090012,0.025,82340.0,82339.0,0.37409202]
[1743684090337,0.025,82340.0,82339.0,0.37426032]
[1743684090511,0.025,82343.0,82342.0,0.242889]
[1743684090674,0.025,82343.0,82342.0,0.1167556]
[1743684090890,0.025,82356.0,82355.0,0.242851]
[1743684091088,0.02513872,82356.0,82355.0,0.14292]
[1743684091297,0.00013872,82356.0,82355.0,0.5146686]
[1743684091512,0.01013872,82356.0,82355.0,0.26197002]
[1743684091717,0.01013872,82356.0,82355.0,0.50482102]
[1743684092286,0.01013872,82356.0,82355.0,0.26197002]
[1743684092488,0.25298672,82356.0,82355.0,0.26197002]
[1743684092796,0.26512872,82356.0,82355.0,0.14292]
[1743684092994,0.29012872,82356.0,82355.0,0.14292]
[1743684093858,0.267871,82348.0,82347.0,0.00905331]
[1743684094274,0.277871,82348.0,82347.0,0.00233386]
[1743684095898,0.252871,82348.0,82347.0,0.00233386]
[1743684096131,0.277871,82348.0,82347.0,0.00233386]
[1743684096538,0.252871,82348.0,82347.0,0.00233386]
[1743684096738,0.277871,82348.0,82347.0,0.00233386]
[1743684097380,0.252871,82348.0,82347.0,0.00233386]
[1743684097577,0.277871,82348.0,82347.0,0.00233386]
[1743684098202,0.339914,82348.0,82347.0,0.00233386]
[1743684098424,0.242895,82340.0,82339.0,0.0001683]
[1743684098645,0.252895,82340.0,82339.0,0.0001683]
[1743684098830,0.252895,82340.0,82339.0,0.00250216]
[1743684099045,0.252895,82340.0,82339.0,0.0001683]
[1743684099215,0.252895,82340.0,82339.0,0.00250216]
[1743684099673,0.265039,82340.0,82339.0,0.00250216]
[1743684099972,0.265039,82340.0,82339.0,0.0001683]
[1743684100304,0.290039,82340.0,82339.0,0.1426883]
[1743684100432,0.277895,82340.0,82339.0,0.1426883]
[1743684100850,0.277895,82340.0,82339.0,0.5144859]
[1743684100851,0.01,82340.0,82339.0,0.5144859]
[1743684101034,0.025,82344.0,82343.0,0.242886]
[1743684101248,0.025,82348.0,82347.0,0.012143]
[1743684101453,0.025,82348.0,82347.0,0.3717726]
[1743684101859,0.025,82348.0,82347.0,0.37412553]
[1743684102245,0.00013872,82356.0,82353.0,0.254998]
[1743684102377,0.025,82355.0,82354.0,0.1167556]
[1743684102593,0.035,82355.0,82354.0,0.1167556]
[1743684102773,0.035,82355.0,82354.0,0.36188742]
[1743684104305,0.28745414,82355.0,82354.0,0.00235293]
[1743684104504,0.33735414,82355.0,82354.0,0.00206487]
[1743684104754,0.267868,82349.0,82348.0,0.14512]
[1743684104955,0.310011,82349.0,82348.0,0.14512]
[1743684106062,0.242895,82340.0,82339.0,0.0001683]
[1743684106269,0.277895,82340.0,82339.0,0.1452483]
[1743684106679,0.277895,82340.0,82339.0,0.0001683]
[1743684106861,0.277895,82340.0,82339.0,0.1452083]
[1743684107496,0.277895,82340.0,82339.0,0.2741079]
[1743684107497,0.01,82340.0,82339.0,0.2741079]
[1743684107625,0.025,82348.0,82345.0,0.012144]
[1743684107830,0.035,82348.0,82347.0,0.012143]
[1743684108022,0.01,82348.0,82347.0,0.1288986]
[1743684108465,0.01,82348.0,82347.0,0.2740986]
[1743684109107,0.01,82348.0,82347.0,0.5169726]
[1743684109696,0.01,82348.0,82347.0,0.2619556]
[1743684110070,0.252871,82348.0,82347.0,0.1167556]
[1743684110274,0.280024,82345.0,82344.0,0.145]
[1743684110480,0.255039,82340.0,82339.0,0.0001683]
[1743684110769,0.275039,82340.0,82339.0,0.1169239]
[1743684110895,0.287895,82340.0,82339.0,0.1169239]
[1743684111724,0.300039,82340.0,82339.0,0.0001683]
[1743684113106,0.045,82340.0,82339.0,0.0001683]
[1743684113306,0.287895,82340.0,82339.0,0.0001683]
[1743684113564,0.045,82340.0,82339.0,0.1169239]
[1743684113764,0.025,82340.0,82339.0,0.1290679]
[1743684113984,0.025,82341.0,82340.0,0.012144]
[1743684114285,0.025,82345.0,82343.0,0.242886]
[1743684114471,0.045,82345.0,82344.0,0.1167556]
[1743684114767,0.045,82345.0,82344.0,0.3596386]
[1743684114969,0.045,82345.0,82344.0,0.1167556]
[1743684115336,0.045,82345.0,82344.0,0.3717826]
[1743684115761,0.02,82345.0,82344.0,0.3717826]
[1743684118491,0.275024,82345.0,82344.0,0.2613156]
[1743684118941,0.275024,82345.0,82344.0,0.14456]
[1743684119941,0.242889,82342.0,82339.0,0.2430633]
[1743684120112,0.0003366,82349.0,82348.0,0.255014]
[1743684120326,0.0353366,82349.0,82348.0,0.3596266]
[1743684120512,0.0353366,82349.0,82348.0,0.3717696]
[1743684120712,0.0103366,82349.0,82348.0,0.3717696]
[1743684121079,0.0003366,82349.0,82348.0,0.3717696]
[1743684121228,0.0003366,82349.0,82348.0,0.1167556]
[1743684121607,0.0124796,82349.0,82348.0,0.1167556]
[1743684121967,0.0124796,82349.0,82338.0,0.242899]
[1743684121968,0.242892,82341.0,82338.0,0.242899]
[1743684122177,0.252892,82341.0,82340.0,0.14468]
[1743684122362,0.01,82341.0,82340.0,0.14468]
[1743684122561,0.01,82341.0,82340.0,0.387575]
[1743684123081,0.24288,82346.0,82340.0,0.387575]
[1743684123082,0.0003366,82349.0,82348.0,0.255014]
[1743684123295,0.025,82348.0,82347.0,0.255016]
[1743684123507,0.0103366,82349.0,82348.0,0.255014]
[1743684123508,0.0003366,82349.0,82348.0,0.255014]
[1743684123718,0.0353366,82349.0,82348.0,0.3717696]
[1743684124174,0.0353366,82349.0,82348.0,0.5167296]
[1743684125795,0.0103366,82349.0,82348.0,0.5167296]
[1743684125986,0.0353366,82349.0,82348.0,0.5167296]
[1743684126542,0.0103366,82349.0,82348.0,0.5167296]
[1743684127688,0.0103366,82349.0,82340.0,0.012144]
[1743684127689,0.012143,82346.0,82340.0,0.012144]
[1743684127905,0.012143,82346.0,82340.0,0.1167556]
[1743684127906,0.012144,82341.0,82340.0,0.1167556]
[1743684128162,0.280039,82340.0,82339.0,0.0001683]
[1743684128364,0.300039,82340.0,82339.0,0.1449283]
[1743684128561,0.045,82340.0,82339.0,0.3878263]
[1743684128767,0.045,82340.0,82339.0,0.3999703]
[1743684128941,0.045,82340.0,82339.0,0.3878263]
[1743684129301,0.045,82340.0,82339.0,0.1449283]
[1743684129490,0.045,82340.0,82339.0,0.3999703]
[1743684129685,0.045,82340.0,82339.0,0.5167259]
[1743684129890,0.02,82340.0,82339.0,0.5167259]
[1743684130683,0.02,82340.0,82339.0,0.51545902]
[1743684132513,0.02,82340.0,82339.0,0.3717976]
[1743684132727,0.02,82340.0,82339.0,0.5164776]
[1743684133220,0.0003366,82349.0,82348.0,0.255014]
[1743684133221,0.0253366,82349.0,82348.0,0.255014]
[1743684133418,0.2782066,82349.0,82348.0,0.1167556]
[1743684133657,0.025,82345.0,82339.0,0.156824]
[1743684133863,0.035,82345.0,82340.0,0.1288996]
[1743684134084,0.242888,82343.0,82340.0,0.1167556]
[1743684134324,0.01,82343.0,82342.0,0.242889]
[1743684134533,0.01,82343.0,82342.0,0.3596446]
[1743684134737,0.01,82343.0,82342.0,0.3717886]
[1743684135361,0.005,82389.0,82342.0,0.3717886]
[1743684135362,0.025,82355.0,82348.0,0.255014]
[1743684135480,0.025,82354.0,82348.0,0.3717696]
[1743684135683,0.025,82353.0,82348.0,0.3717696]
[1743684136497,0.025,82355.0,82348.0,0.3717696]
[1743684136754,0.025,82358.0,82348.0,0.3717696]
[1743684136929,0.025,82360.0,82348.0,0.3717696]
[1743684137126,0.025,82361.0,82348.0,0.3717696]
[1743684137333,0.025,82359.0,82348.0,0.3717696]
[1743684137853,0.242815,82368.0,82348.0,0.3717696]
[1743684138051,0.025,82361.0,82348.0,0.3717696]
[1743684138226,0.025,82360.0,82348.0,0.3717696]
[1743684138408,0.025,82358.0,82348.0,0.3717696]
[1743684139984,0.048,82369.0,82348.0,0.3717696]
[1743684140184,0.048,82369.0,82348.0,0.37169423]
[1743684140185,0.242811,82369.0,82348.0,0.37169423]
[1743684140397,0.025,82358.0,82348.0,0.37169423]
[1743684140578,0.025,82367.0,82348.0,0.37169423]
[1743684140780,6e-07,82349.0,82348.0,0.76099423]
[1743684141197,6e-07,82349.0,82348.0,0.71169423]
[1743684141520,6e-07,82349.0,82348.0,0.51637423]
[1743684141739,6e-07,82349.0,82348.0,0.51641423]
[1743684141938,6e-07,82349.0,82348.0,0.51637423]
[1743684142169,6e-07,82349.0,82348.0,0.5165696]
[1743684142371,0.0100006,82349.0,82348.0,0.2615556]
[1743684142574,0.0100006,82349.0,82348.0,0.1448]
[1743684142872,0.0100006,82349.0,82348.0,0.242871]
[1743684143077,0.0100006,82349.0,82348.0,0.399814]
[1743684143491,0.0100006,82349.0,82348.0,0.5165696]
[1743684143697,6e-07,82349.0,82348.0,0.5165696]
[1743684147972,6e-07,82349.0,82348.0,0.3717696]
[1743684148204,6e-07,82349.0,82348.0,0.5165696]
[1743684150798,6e-07,82349.0,82348.0,0.3717696]
[1743684150970,6e-07,82349.0,82348.0,0.5163696]
[1743684154104,6e-07,82349.0,82348.0,0.3717696]
[1743684154437,6e-07,82349.0,82346.0,0.36396955]
[1743684154438,0.012143,82347.0,82346.0,0.10894955]
[1743684154651,0.290017,82347.0,82346.0,0.10894955]
[1743684154861,0.280027,82344.0,82343.0,0.10894955]
[1743684155080,0.287883,82344.0,82343.0,0.10894955]
[1743684155918,0.045,82344.0,82343.0,0.46859115]
[1743684156106,0.045,82344.0,82343.0,0.48073515]
[1743684156277,0.045,82344.0,82343.0,0.46859115]
[1743684156977,0.045,82344.0,82343.0,0.3717856]
[1743684157629,0.025,82344.0,82343.0,0.3717856]
[1743684157831,0.267883,82344.0,82343.0,0.1167556]
[1743684158008,0.277883,82344.0,82343.0,0.1167556]
[1743684158204,0.035,82344.0,82343.0,0.3596416]
[1743684158406,0.035,82344.0,82343.0,0.1167556]
[1743684158998,0.035,82344.0,82343.0,0.3596416]
[1743684159199,0.035,82344.0,82343.0,0.1167556]
[1743684160275,0.035,82344.0,82343.0,0.3596416]
[1743684160432,0.035,82344.0,82343.0,0.242886]
[1743684160635,0.035,82344.0,82343.0,0.25503]
[1743684160842,0.035,82344.0,82343.0,0.242886]
[1743684161243,0.025,82343.0,82342.0,0.14424]
[1743684161431,0.035,82343.0,82342.0,0.2609956]
[1743684161629,0.035,82343.0,82342.0,0.14424]
[1743684161630,0.277886,82343.0,82342.0,0.14424]
[1743684161942,0.29003,82343.0,82342.0,0.14424]
[1743684162372,0.255039,82340.0,82339.0,0.0001683]
[1743684162576,0.597939,82340.0,82339.0,0.0001683]
[1743684164300,0.984839,82340.0,82339.0,0.0001683]
[1743684164816,0.02006,82333.0,82332.0,0.35307375]
[1743684164962,0.54512,82333.0,82332.0,0.35307375]
[1743684168151,0.02006,82333.0,82332.0,1.06489235]
[1743684168356,0.02006,82337.0,82336.0,0.25505]
[1743684168564,0.02006,82337.0,82336.0,0.3718056]
[1743684168967,0.02006,82337.0,82336.0,0.7118056]
[1743684170183,0.02006,82344.0,82343.0,0.25503]
[1743684170503,0.0650606,82349.0,82348.0,0.595014]
[1743684170711,0.0750606,82349.0,82348.0,0.595014]
[1743684170844,0.0100006,82349.0,82348.0,0.7117696]
[1743684171045,6e-07,82349.0,82348.0,0.7117696]
[1743684171661,6e-07,82349.0,82348.0,0.72494322]
[1743684174616,6e-07,82349.0,82348.0,0.77334322]
[1743684175946,9.2e-07,82356.0,82355.0,0.594993]
[1743684176149,0.0003366,82370.0,82369.0,0.594949]
[1743684176364,0.00039283,82370.0,82369.0,0.8549046]
[1743684178726,0.00039283,82370.0,82369.0,0.8548046]
[1743684178926,0.00039283,82370.0,82369.0,0.86374003]
[1743684180961,0.00039283,82370.0,82369.0,0.86330003]
[1743684182027,0.00039283,82370.0,82369.0,0.4567556]
[1743684182028,0.10039283,82370.0,82369.0,0.4567556]
[1743684182338,0.10039283,82370.0,82369.0,0.6117356]
[1743684183124,0.10039283,82370.0,82369.0,0.8545446]
[1743684183444,0.00039283,82370.0,82369.0,0.8544246]
[1743684183822,0.09039283,82370.0,82369.0,0.8544246]
[1743684184021,0.11039283,82370.0,82369.0,0.8544246]
[1743684184259,0.11039283,82370.0,82369.0,0.8422846]
[1743684184657,0.11039283,82370.0,82369.0,0.8544246]
[1743684185633,0.11039283,82370.0,82369.0,0.5994356]
[1743684185775,0.35319883,82370.0,82369.0,0.5994356]
[1743684185981,0.11039283,82370.0,82369.0,0.6115756]
[1743684186407,0.11039283,82370.0,82369.0,0.8543846]
[1743684186630,0.13045283,82370.0,82369.0,0.5994356]
[1743684186858,0.13045283,82370.0,82369.0,0.4567556]
[1743684187057,0.13045283,82370.0,82369.0,0.8542646]
[1743684187460,0.13045283,82370.0,82369.0,0.1167556]
[1743684187658,0.37325883,82370.0,82369.0,0.1167556]
[1743684187905,0.02006,82361.0,82360.0,0.012141]
[1743684188104,0.29006,82361.0,82360.0,0.8542926]
[1743684189182,0.29006,82361.0,82360.0,0.5142926]
[1743684191850,0.29006,82361.0,82360.0,0.2593156]
[1743684192057,0.29006,82361.0,82360.0,0.242836]
[1743684192207,0.29006,82361.0,82360.0,0.254977]
[1743684193519,0.29006,82361.0,82360.0,0.242836]
[1743684193721,0.29006,82361.0,82360.0,0.254977]
[1743684195652,0.02006,82360.0,82359.0,0.14228]
[1743684195824,0.26006,82360.0,82359.0,0.2590356]
[1743684196025,0.26006,82360.0,82359.0,0.5018746]
[1743684196228,0.26006,82360.0,82359.0,0.5140156]
[1743684196434,0.26006,82360.0,82359.0,0.5018746]
[1743684197299,0.26006,82360.0,82355.0,0.25499]
[1743684197300,0.02006,82357.0,82345.0,0.012144]
[1743684197548,0.02006,82347.0,82346.0,0.2591956]
[1743684197749,0.02006,82337.0,82334.0,0.12109455]
[1743684197923,0.02006,82337.0,82334.0,0.36400755]
[1743684197924,0.02006,82335.0,82334.0,0.36400755]
[1743684198152,0.02006,82337.0,82336.0,0.012145]
[1743684198324,0.03006,82337.0,82336.0,0.3718076]
[1743684199199,0.03006,82337.0,82336.0,0.37194632]
[1743684199410,0.06067969,82412.0,82336.0,0.37194632]
[1743684199411,0.34,82358.0,82354.0,0.012142]
[1743684199621,0.02006,82357.0,82356.0,0.254989]
[1743684199873,0.36006,82358.0,82357.0,0.254987]
[1743684200079,0.02006,82357.0,82356.0,0.254989]
[1743684200297,0.02006,82355.0,82354.0,0.1167556]
[1743684200504,0.26006,82355.0,82354.0,0.3596096]
[1743684200704,0.26006,82355.0,82354.0,0.1167556]
[1743684200920,0.26006,82355.0,82354.0,0.3596096]
[1743684201145,0.26006,82355.0,82354.0,0.3717516]
[1743684201321,0.24,82355.0,82354.0,0.3717516]
[1743684202049,0.14,82355.0,82354.0,0.3717516]
[1743684202167,0.16006,82355.0,82354.0,0.1167556]
[1743684202548,0.415053,82355.0,82354.0,0.1167556]
[1743684202825,0.415053,82355.0,82353.0,0.1426]
[1743684203039,0.275056,82354.0,82353.0,0.1426]
[1743684203203,0.525056,82354.0,82353.0,0.1426]
[1743684203405,0.02006,82342.0,82339.0,0.012144]
[1743684203580,0.03006,82342.0,82341.0,0.255036]
[1743684203926,0.03006,82342.0,82341.0,0.3717916]
[1743684204999,0.03006,82342.0,82341.0,0.5146716]
[1743684209348,0.475404,82342.0,82341.0,0.1167556]
[1743684209580,0.475404,82342.0,82336.0,0.01245202]
[1743684209581,0.275109,82337.0,82336.0,0.00030702]
[1743684209734,0.875109,82337.0,82336.0,0.00030702]
[1743684209976,0.921409,82337.0,82336.0,0.00030702]
[1743684211099,0.821409,82337.0,82336.0,0.00030702]
[1743684214114,0.88564985,82337.0,82336.0,0.00030702]
[1743684214315,1.00240545,82337.0,82336.0,0.00030702]
[1743684214523,0.871109,82337.0,82336.0,0.00030702]
[1743684214882,0.89080756,82337.0,82336.0,0.00030702]
[1743684215216,1.02210401,82337.0,82336.0,0.00030702]
[1743684217516,1.16384802,82337.0,82332.0,0.352091]
[1743684217714,0.36668685,82328.0,82327.0,5e-07]
[1743684217926,0.81674245,82328.0,82327.0,5e-07]
[1743684218134,0.81674245,82328.0,82321.0,0.004]
[1743684218345,0.012149,82311.0,82301.0,0.0004]
[1743684218626,0.058347,82320.0,82266.0,0.0001683]
[1743684218627,0.012153,82282.0,82271.0,0.00174279]
[1743684218871,0.012154,82271.0,82265.0,0.07871299]
[1743684219151,0.012154,82271.0,82260.0,0.0123243]
[1743684219152,0.24312,82264.0,82260.0,0.0001683]
[1743684219417,0.01058018,82262.0,82260.0,0.0001683]
[1743684219666,0.16,82262.0,82261.0,0.00446323]
[1743684220150,0.172156,82262.0,82261.0,0.00446323]
[1743684220413,0.10768836,82262.0,82261.0,0.00446323]
[1743684220665,0.10768836,82262.0,82261.0,0.00603782]
[1743684220666,0.03645766,82262.0,82261.0,0.00603782]
[1743684221389,0.31601907,82270.0,82268.0,0.00157459]
[1743684221587,0.012156,82262.0,82261.0,0.00446323]
[1743684221792,0.523125,82262.0,82261.0,0.00603782]
[1743684221998,0.243081,82277.0,82269.0,0.00157459]
[1743684222202,0.20270506,82272.0,82261.0,0.0004574]
[1743684222411,0.26,82272.0,82261.0,0.0004574]
[1743684222618,0.243107,82268.0,82250.0,0.012158]
[1743684222824,0.243107,82268.0,82243.0,0.012159]
[1743684222825,0.243135,82259.0,82243.0,0.012159]
[1743684223028,0.243135,82259.0,82258.0,0.00013888]
[1743684223029,0.503135,82259.0,82258.0,0.00013888]
[1743684223232,0.26,82259.0,82258.0,0.00013888]
[1743684224041,0.503134,82259.0,82258.0,0.00013888]
[1743684224270,0.26,82259.0,82258.0,0.00013888]
[1743684224480,0.272156,82259.0,82258.0,0.00013888]
[1743684224689,0.26,82259.0,82258.0,0.00013888]
[1743684224871,0.272156,82259.0,82258.0,0.00013888]
[1743684225076,0.26,82259.0,82258.0,0.00013888]
[1743684225652,0.272156,82259.0,82258.0,0.00013888]
[1743684226010,0.7862596,82259.0,82258.0,0.00013888]
[1743684226220,0.705556,82259.0,82258.0,0.00013888]
[1743684226825,0.76284754,82259.0,82258.0,0.00013888]
[1743684227231,0.87960314,82259.0,82258.0,0.00013888]
[1743684227518,0.243171,82247.0,82241.0,0.007]
[1743684227746,0.24318,82244.0,82241.0,0.007]
[1743684227872,0.012159,82242.0,82241.0,0.007]
[1743684228074,0.27,82242.0,82241.0,0.007]
[1743684228831,0.282159,82242.0,82241.0,0.007]
[1743684229011,0.377259,82242.0,82241.0,0.007]
[1743684229187,0.012159,82239.0,82231.0,0.004]
[1743684229385,0.612159,82239.0,82231.0,0.004]
[1743684229585,0.62669985,82239.0,82231.0,0.004]
[1743684229787,0.612159,82239.0,82231.0,0.004]
[1743684230013,0.62669985,82239.0,82231.0,0.004]
[1743684230237,0.74345545,82239.0,82231.0,0.004]
[1743684231001,0.86019946,82239.0,82231.0,0.004]
[1743684231206,0.74345545,82239.0,82231.0,0.004]
[1743684231419,0.7430566,82239.0,82231.0,0.004]
[1743684231631,0.26,82239.0,82236.0,0.243201]
[1743684231845,0.26,82239.0,82238.0,0.012239]
[1743684231846,0.59,82239.0,82238.0,0.012239]
[1743684232055,0.59,82239.0,82238.0,0.00650927]
[1743684232267,0.59,82239.0,82238.0,0.012239]
[1743684232477,0.34,82239.0,82238.0,0.01866827]
[1743684232685,0.45,82239.0,82238.0,0.01849043]
[1743684232884,0.34,82239.0,82238.0,0.01849043]
[1743684233098,0.44,82239.0,82238.0,0.01849043]
[1743684233306,0.13521848,82239.0,82238.0,0.26168343]
[1743684233531,0.13521848,82239.0,82238.0,1.31156343]
[1743684233740,0.13521848,82239.0,82238.0,1.05630927]
[1743684234159,0.13521848,82239.0,82238.0,1.06846827]
[1743684234342,0.14622457,82239.0,82238.0,1.06846827]
[1743684234790,0.48622457,82239.0,82238.0,1.05630927]
[1743684235609,0.48622457,82239.0,82238.0,1.05589697]
[1743684236565,0.14622457,82239.0,82238.0,1.05589697]
[1743684236814,0.48622457,82239.0,82238.0,1.05589697]
[1743684237038,0.48622457,82239.0,82238.0,1.04988]
[1743684237242,0.14622457,82239.0,82238.0,1.04988]
[1743684237446,0.15838357,82239.0,82238.0,1.05502791]
[1743684237674,0.15838357,82239.0,82238.0,1.02767089]
[1743684237816,0.15838357,82239.0,82238.0,0.98967368]
[1743684238218,0.54568357,82239.0,82238.0,0.93664598]
[1743684238493,0.76500611,82239.0,82238.0,0.93664598]
[1743684238694,0.72478002,82239.0,82238.0,0.00531631]
[1743684238904,0.55964085,82239.0,82238.0,0.00531631]
[1743684239106,0.55964085,82239.0,82238.0,0.0001684]
[1743684239107,0.5451,82239.0,82238.0,0.0001684]
[1743684239324,0.61463171,82239.0,82238.0,0.0001684]
[1743684239503,0.34,82238.0,82231.0,0.004]
[1743684239740,0.57,82238.0,82231.0,0.004]
[1743684239957,0.582159,82238.0,82231.0,0.004]
[1743684240202,0.57,82238.0,82232.0,0.00523432]
[1743684240409,0.23,82238.0,82237.0,0.012159]
[1743684240615,0.23,82238.0,82234.0,0.255363]
[1743684240820,0.23,82238.0,82237.0,0.012159]
[1743684241030,0.23,82238.0,82235.0,0.00523432]
[1743684241223,0.23,82238.0,82231.0,0.004]